lending/lending_fUSD_20240603
["ID","MTS","AMOUNT","RATE_DAILY","PERIOD"]
[328427963,1717377049161,-999.25,0.00030136,4]
[328427964,1717377049170,-500.0,0.00030136,4]
[328427965,1717377049180,-500.0,0.00030136,4]
[328427966,1717377049189,-2607.43,0.00030136,4]
[328427967,1717377049198,-500.0,0.00030136,4]
[328427968,1717377049208,-2234.79,0.00030136,4]
[328427969,1717377049217,-737.6,0.00030136,4]
[328427970,1717377049226,-543.37,0.00030136,4]
[328427971,1717377049236,-704.95,0.00030136,4]
[328427972,1717377049246,-500.0,0.00030136,4]
[328427973,1717377049255,-897.38,0.00030136,4]
[328427974,1717377049264,-500.0,0.00030136,4]
[328427975,1717377049274,-687.32,0.00030136,4]
[328427976,1717377049283,-500.0,0.00030136,4]
[328427977,1717377049292,-500.0,0.00030136,4]
[328427978,1717377049306,-3570.83,0.00030136,4]
[328427979,1717377049315,-500.0,0.00030136,4]
[328427980,1717377049325,-500.0,0.00030136,4]
[328427981,1717377049334,-500.0,0.00030136,4]
[328427982,1717377049345,-504.1,0.00030136,4]
[328427983,1717377049355,-1761.65,0.00030136,4]
[328427984,1717377049363,-1428.92,0.00030136,4]
[328427985,1717377049373,-500.0,0.00030136,4]
[328427986,1717377049383,-2813.71,0.00030136,4]
[328427987,1717377049392,-505.08,0.00030136,4]
[328427988,1717377049402,-500.0,0.00030136,4]
[328427989,1717377049410,-500.0,0.00030136,4]
[328427990,1717377049420,-1267.31,0.00030136,4]
[328427991,1717377049429,-507.92,0.00030136,4]
[328427992,1717377049438,-627.78,0.00030136,4]
[328427993,1717377049447,-769.41,0.00030136,4]
[328427994,1717377049456,-500.0,0.00030136,4]
[328427995,1717377049465,-500.0,0.00030136,4]
[328427996,1717377049475,-500.0,0.00030136,4]
[328427997,1717377049485,-500.0,0.00030136,4]
[328427998,1717377049494,-200.61913249,0.00030136,4]
[328427999,1717377049503,-539.95,0.00030136,4]
[328428000,1717377049512,-74.52290084,0.00030136,4]
[328428001,1717377049524,-478.05917093,0.00030136,4]
[328428002,1717377049535,-392.81792823,0.00030136,4]
[328428003,1717377049545,-604.98842275,0.00030136,4]
[328428004,1717377049554,-500.0,0.00030136,4]
[328428005,1717377049564,-500.0,0.00030136,4]
[328428006,1717377049573,-500.0,0.00030136,4]
[328428007,1717377049583,-500.0,0.00030136,4]
[328428008,1717377049592,-806.93,0.00030136,4]
[328428009,1717377049602,-500.0,0.00030136,4]
[328428010,1717377049611,-500.0,0.00030136,4]
[328428011,1717377049620,-807.07,0.00030136,4]
[328428012,1717377049629,-500.0,0.00030136,4]
[328428013,1717377049638,-258.36497925,0.00030136,4]
[328428014,1717377049650,-896.07502075,0.00030136,4]
[328428015,1717377049659,-245.64445803,0.00030136,4]
[328428020,1717377674191,16424.94211513,0.00031,30]
[328428027,1717377799684,168.17,0.00026433,120]
[328428029,1717377818493,1000.0,0.00031,120]
[328428033,1717377870646,1000.0,0.00031,120]
[328428034,1717377877756,1000.0,0.00031,120]
[328428035,1717377882523,1000.0,0.00031,120]
[328428036,1717377887581,1000.0,0.00031,120]
[328428041,1717378232546,-150.0,0.00019725,2]
[328428043,1717378232557,-300.0,0.00019725,2]
[328428045,1717378232567,-226.50923576,0.000201,2]
[328428047,1717378232576,-89.00683404,0.00020896,2]
[328428051,1717378232808,-105.52316596,0.00020896,2]
[328428052,1717378232818,-183.33576625,0.00021146,2]
[328428053,1717378232828,-261.63362043,0.00021195,2]
[328428054,1717378232840,-738.36637957,0.00021195,2]
[328428055,1717378232854,-1000.0,0.00021304,2]
[328428056,1717378232863,-210.0,0.00021698,2]
[328428057,1717378232873,-1000.0,0.00021703,2]
[328428058,1717378232882,-919.7128018,0.00021773,2]
[328428059,1717378232896,-80.2871982,0.00021773,2]
[328428060,1717378232905,-1000.0,0.00021828,2]
[328428061,1717378232914,-1000.0,0.00022894,2]
[328428062,1717378232926,-1564.72715706,0.00023178,2]
[328428063,1717378232935,-436.09,0.0002385,2]
[328428064,1717378232945,-293.0,0.00023867,2]
[328428065,1717378232954,-153.79,0.00024384,2]
[328428066,1717378232964,-1250.0,0.00025,2]
[328428067,1717378232974,-155.0,0.00025,2]
[328428068,1717378232984,-929.09920929,0.00025,2]
[328428069,1717378232994,-167.08266536,0.00026044,2]
[328428070,1717378233006,-82.91733464,0.00026044,2]
[328428071,1717378233015,-250.0,0.00026094,2]
[328428072,1717378233025,-436.09,0.00026114,2]
[328428073,1717378233035,-375.9,0.00026134,2]
[328428074,1717378233044,-200.0,0.00026172,2]
[328428075,1717378233054,-4601.65,0.00026203,2]
[328428076,1717378233063,-411.0,0.00026254,2]
[328428077,1717378233074,-1286.35,0.00026258,2]
[328428078,1717378233083,-363.79,0.00026259,2]
[328428079,1717378233093,-200.0,0.00026281,2]
[328428080,1717378233103,-166.72,0.00026352,2]
[328428081,1717378233112,-250.0,0.00026433,2]
[328428082,1717378233122,-265.10453941,0.00026488,7]
[328428083,1717378233131,-152.52245381,0.00026488,7]
[328428085,1717378233141,-1000.0,0.00026511,2]
[328428087,1717378233150,-151.0,0.00026796,5]
[328428089,1717378233161,-167.85,0.00026801,2]
[328428091,1717378233170,-454.26464379,0.00026819,2]
[328428092,1717378233182,-1300.0,0.00027,2]
[328428095,1717378233192,-163.36,0.00027224,2]
[328428097,1717378233201,-151.0,0.00028087,7]
[328428099,1717378233211,-436.09,0.00028378,2]
[328428101,1717378233220,-180.0,0.00028659,2]
[328428103,1717378233230,-167.0,0.00028844,2]
[328428105,1717378233239,-363.79,0.00028998,2]
[328428107,1717378233249,-1350.0,0.00029,2]
[328428109,1717378233258,-173.15,0.00029087,2]
[328428111,1717378233268,-151.0,0.00029378,7]
[328428113,1717378233278,-460.4785,0.0002978,2]
[328428115,1717378233287,-162.65021228,0.0002978,2]
[328428117,1717378233297,-3225.87712945,0.0002978,2]
[328428119,1717378233306,-1669.52970767,0.0002978,2]
[328428121,1717378233316,-3225.87712945,0.00029805,2]
[328428123,1717378233326,-1000.0,0.00029825,2]
[328428125,1717378233335,-3225.87712945,0.0002983,2]
[328428127,1717378233345,-3225.87712945,0.00029855,2]
[328428129,1717378233354,-269.39,0.0002987,2]
[328428131,1717378233364,-313.71111822,0.00029879,2]
[328428133,1717378233373,-139012.42265751,0.0002988,2]
[328428136,1717378233385,-67015.98513766,0.0002988,2]
[328428138,1717378233397,-293.26397614,0.0002988,2]
[328428139,1717378233408,-650.23905597,0.0002988,2]
[328428140,1717378233533,-860.35582076,0.0002988,2]
[328428141,1717378238699,-1002.39094644,0.0002988,2]
[328428163,1717378241747,-1459.03194714,0.00029,2]
[328428164,1717378241756,-10211.93980613,0.0002988,2]
[328428165,1717378241768,-293.7,0.0002988,2]
[328428166,1717378241779,-960.39317097,0.0002988,2]
[328428167,1717378241789,-706.55085503,0.0002988,2]
[328428168,1717378241801,-1149.42897912,0.0002988,2]
[328428169,1717378241825,-1179.86580013,0.0002988,2]
[328428170,1717378241836,-489.59093316,0.0002988,2]
[328428171,1717378241852,-583.612171,0.0002988,2]
[328428172,1717378241864,-753.000003,0.0002988,2]
[328428173,1717378241875,-507.276,0.0002988,2]
[328428174,1717378241887,-7976.82680112,0.0002988,2]
[328428175,1717378241898,-454.18508886,0.0002988,2]
[328428176,1717378241910,-342.108,0.0002988,2]
[328428177,1717378241921,-2052.14639897,0.0002988,2]
[328428178,1717378241933,-1809.12149578,0.0002988,2]
[328428179,1717378242767,-6695.59690225,0.0002988,2]
[328428180,1717378242778,-500.0,0.0002988,2]
[328428181,1717378242788,-1000.0,0.0002988,2]
[328428182,1717378242798,-1292.42902676,0.0002988,2]
[328428183,1717378242808,-176.87029013,0.0002988,2]
[328428184,1717378242817,-3225.87712945,0.0002988,2]
[328428185,1717378242827,-386.34993037,0.0002988,2]
[328428186,1717378242836,-1000.0,0.00029898,2]
[328428187,1717378242852,-2145.01309501,0.000299,2]
[328428188,1717378242861,-260.43380527,0.000299,2]
[328428189,1717378242870,-201.06477096,0.000299,2]
[328428190,1717378242880,-978.69636484,0.000299,2]
[328428191,1717378242890,-217.50485856,0.000299,2]
[328428192,1717378242899,-6614.96134471,0.000299,2]
[328428193,1717378242909,-28510.38725013,0.000299,2]
[328428194,1717378242919,-448.18238753,0.000299,2]
[328428195,1717378242934,-19931.81318871,0.00029934,2]
[328428196,1717378242945,-39269.1915,0.00029936,2]
[328428197,1717378242955,-1000.0,0.00029949,2]
[328428198,1717378242965,-212.0,0.0002995,15]
[328428199,1717378242974,-783.19332771,0.0002995,2]
[328428200,1717378242984,-212.0,0.0002996,15]
[328428201,1717378242993,-153.82,0.0002997,2]
[328428202,1717378243003,-153.82,0.0002997,2]
[328428203,1717378243012,-269.39,0.0002997,2]
[328428204,1717378243031,-153.82,0.0002997,2]
[328428205,1717378243040,-269.39,0.0002997,2]
[328428206,1717378243050,-269.39,0.0002997,2]
[328428207,1717378243059,-269.39,0.0002997,2]
[328428208,1717378243068,-269.39,0.0002997,2]
[328428209,1717378243078,-269.39,0.0002997,2]
[328428210,1717378243087,-212.0,0.0002997,15]
[328428211,1717378243096,-153.82,0.0002997,2]
[328428212,1717378243106,-153.82,0.0002997,2]
[328428213,1717378243115,-153.82,0.0002997,2]
[328428214,1717378243124,-153.82,0.0002997,2]
[328428215,1717378243134,-153.82,0.0002997,2]
[328428216,1717378243143,-153.82,0.0002997,2]
[328428217,1717378243152,-153.82,0.0002997,2]
[328428218,1717378243162,-269.39,0.0002997,2]
[328428219,1717378243171,-153.82,0.0002997,2]
[328428220,1717378243180,-153.82,0.0002997,2]
[328428221,1717378243191,-269.39,0.0002997,2]
[328428222,1717378243201,-153.82,0.0002997,2]
[328428223,1717378243214,-269.39,0.0002997,2]
[328428224,1717378243228,-153.82,0.0002997,2]
[328428225,1717378243242,-153.82,0.0002997,2]
[328428226,1717378243255,-3616.15715588,0.0002998,11]
[328428228,1717378243714,-1113.8701207,0.0002998,11]
[328428230,1717378243727,-486.64475688,0.0002998,11]
[328428231,1717378243741,-298.93134934,0.0002998,11]
[328428232,1717378243754,-1963.95623651,0.0002998,11]
[328428233,1717378243768,-2628.72642973,0.0002998,11]
[328428237,1717378244151,-1000.87999974,0.0002998,11]
[328428238,1717378244164,-885.5554466,0.0002998,11]
[328428239,1717378244177,-340.101816,0.0002998,11]
[328428240,1717378244192,-5028.20667462,0.0002998,11]
[328428241,1717378244207,-866.99541553,0.0002998,11]
[328428242,1717378244221,-3838.27422759,0.0002998,11]
[328428243,1717378244238,-1096694.56318126,0.0002998,11]
[328428244,1717378244248,-1120448.50870696,0.0002998,14]
[328428245,1717378244262,-292.35005528,0.0002998,14]
[328428246,1717378244274,-13865.70204223,0.0002998,14]
[328428247,1717378244297,-53391.58459288,0.0002998,14]
[328428250,1717378244434,-2843.84248226,0.0002998,14]
[328428253,1717378244450,-2020.26401854,0.0002998,14]
[328428258,1717378244464,-2682.04299707,0.0002998,14]
[328428261,1717378244478,-204953.9999998,0.0002998,14]
[328428265,1717378244493,-1175.26064,0.0002998,14]
[328428267,1717378244506,-818.84263907,0.0002998,14]
[328428270,1717378244520,-660.19,0.0002998,14]
[328428272,1717378244533,-2084.09343301,0.0002998,14]
[328428275,1717378244547,-701.666667,0.0002998,14]
[328428277,1717378244560,-855.62630079,0.0002998,14]
[328428280,1717378244574,-352.72799642,0.0002998,14]
[328428391,1717378245607,-291225.5303316,0.0002998,14]
[328428394,1717378245623,-667.34675804,0.0002998,14]
[328428397,1717378245637,-247545.01032878,0.0002998,14]
[328428488,1717378246638,-16132.57168591,0.0002998,14]
[328428491,1717378246653,-36728.04919,0.0002998,14]
[328428495,1717378246668,-1611.63040928,0.0002998,14]
[328428498,1717378246682,-7141.06143486,0.0002998,14]
[328428500,1717378246698,-854.0,0.0002998,14]
[328428502,1717378246711,-1954.9911277,0.0002998,14]
[328428505,1717378246725,-1675.70178207,0.0002998,14]
[328428507,1717378246739,-13324.8499746,0.0002998,14]
[328428510,1717378246754,-940.30167416,0.0002998,14]
[328428513,1717378246767,-892.54323916,0.0002998,14]
[328428584,1717378247417,-3555.70374447,0.0002998,14]
[328428586,1717378247431,-35205.5968648,0.0002998,14]
[328428588,1717378247445,-31104.017452,0.0002998,14]
[328428591,1717378247458,-3000.00155579,0.0002998,14]
[328428594,1717378247473,-4919.32526002,0.0002998,14]
[328428596,1717378247486,-253.94151929,0.0002998,14]
[328428599,1717378247500,-508.451839,0.0002998,14]
[328428601,1717378247512,-386.34527195,0.0002998,14]
[328428604,1717378247526,-364.35334451,0.0002998,14]
[328428606,1717378247539,-467.73676211,0.0002998,14]
[328428608,1717378247551,-110990.15257711,0.0002998,14]
[328428611,1717378247564,-638.3,0.0002998,14]
[328428613,1717378247576,-3575.3511807,0.0002998,14]
[328428615,1717378247589,-1825.79,0.0002998,14]
[328428618,1717378247603,-6132.54188406,0.0002998,14]
[328428620,1717378247615,-858.99079704,0.0002998,14]
[328428623,1717378247628,-3754.07542058,0.0002998,14]
[328428625,1717378247640,-576.3471403,0.0002998,14]
[328428628,1717378247653,-265.84776388,0.0002998,14]
[328428630,1717378247666,-8050.68204087,0.0002998,14]
[328428632,1717378247679,-7146.8997323,0.0002998,14]
[328428635,1717378247693,-2293.52835284,0.0002998,14]
[328428637,1717378247706,-784.50318454,0.0002998,14]
[328428639,1717378247719,-430.0,0.0002998,14]
[328428642,1717378247731,-1449.50463452,0.0002998,14]
[328428935,1717378322052,1251.23299091,0.00031,30]
[328428937,1717378634828,196.9306645,0.0002736,120]
[328428939,1717379080128,3468.48526122,0.00031,30]
[328428940,1717379082823,346.99836173,0.00031,30]
[328428945,1717379431843,-226.51830624,0.000201,2]
[328428946,1717379431853,-168.51,0.00021918,2]
[328428947,1717379431862,-203.81015476,0.00022,2]
[328428949,1717379431874,-662.55524728,0.00022,2]
[328428952,1717379431884,-501.85,0.00023837,2]
[328428956,1717379431894,-4662.9310511,0.00024,3]
[328428959,1717379431908,-158.27,0.00024384,2]
[328428961,1717379431918,-157.88,0.00024384,2]
[328428963,1717379431928,-499.99,0.00024384,2]
[328428965,1717379431938,-250.0,0.00025339,2]
[328428967,1717379431947,-200.0,0.00025385,2]
[328428968,1717379431957,-208.16,0.00025472,2]
[328428969,1717379431966,-155.0,0.00025547,2]
[328428970,1717379431976,-929.09920929,0.00025548,2]
[328428971,1717379431986,-500.0,0.00025549,2]
[328428972,1717379431996,-150.0,0.00025644,2]
[328428973,1717379432005,-1823.1,0.00025651,2]
[328428974,1717379432015,-1000.0,0.00025823,2]
[328428975,1717379432025,-250.0,0.00025864,2]
[328428976,1717379432034,-2935.14,0.0002604,2]
[328428977,1717379432044,-501.85,0.00026101,2]
[328428978,1717379432054,-200.0,0.00026145,2]
[328428979,1717379432064,-250.0,0.00026272,2]
[328428980,1717379432074,-313.25,0.00026679,2]
[328428981,1717379432083,-534.12035855,0.0002718,2]
[328428982,1717379432093,-1715.24870924,0.0002726,2]
[328428983,1717379432104,-169.9980253,0.00027297,2]
[328428984,1717379432113,-1900.59203136,0.00027297,2]
[328428985,1717379432123,-154.08,0.00027348,2]
[328428986,1717379432134,-154.08,0.00027348,2]
[328428987,1717379432143,-886.89974959,0.00027357,2]
[328428988,1717379432153,-1508.72589684,0.00027357,2]
[328428989,1717379432163,-500.0,0.00027357,2]
[328428990,1717379432172,-500.0,0.00027357,2]
[328428991,1717379432181,-355.07108438,0.00027357,2]
[328428992,1717379432190,-500.0,0.00027357,2]
[328428993,1717379432200,-487448.4351295,0.00027358,2]
[328428994,1717379432213,-13748.32483707,0.00027358,2]
[328428995,1717379432228,-574.25050338,0.00027358,2]
[328428996,1717379432239,-288.51537332,0.00027358,2]
[328428997,1717379432250,-1423.34594981,0.00027358,2]
[328429000,1717379432271,-6004.14595198,0.00027358,2]
[328429001,1717379432282,-3695.52972817,0.00027358,2]
[328429002,1717379432293,-683.2,0.00027358,2]
[328429003,1717379432308,-5032.32811682,0.00027358,2]
[328429017,1717379438751,-426.34859777,0.00027358,2]
[328429018,1717379438763,-3265.93535247,0.00027358,2]
[328429019,1717379438774,-4043.38850079,0.00027358,2]
[328429029,1717379440728,-723.9265579,0.00027358,2]
[328429030,1717379440739,-815.2889962,0.00027358,2]
[328429037,1717379442953,-183.15920777,0.00027297,2]
[328429038,1717379442962,-834795.66016491,0.00027358,2]
[328429039,1717379443387,-926.5636354,0.00027358,2]
[328429051,1717379448083,-226.51830624,0.00020517,2]
[328429052,1717379448093,-455.23569376,0.00027357,2]
[328429053,1717379448302,-474.43502146,0.00027357,2]
[328429054,1717379448311,-5524.06320166,0.00027358,2]
[328429059,1717379560070,433.80567337,0.0003,30]
[328429060,1717379576047,232.8889711,0.0003,30]
[328429061,1717379588101,396.0,0.00031,30]
[328429062,1717379675509,1330.0,0.00031,30]
[328429063,1717379684422,168.17,0.00026821,120]
[328429065,1717379694201,964.16,0.00031,30]
[328429067,1717380073542,3587.21459113,0.00031,30]
[328429068,1717380168423,3068.3089413,0.00030789,30]
[328429069,1717380171437,1500.0,0.00031,30]
[328429072,1717380350493,157.060611,0.00031,32]
[328429073,1717380365868,236.060611,0.00031,34]
[328429074,1717380395156,-155.0,0.00017158,2]
[328429075,1717380395177,-155.31918262,0.00017159,2]
[328429076,1717380395196,-2228.2583289,0.00017259,2]
[328429077,1717380395215,-226.51830624,0.000201,2]
[328429078,1717380395234,-155.31918261,0.00022225,2]
[328429079,1717380395254,-186.01898653,0.00024198,2]
[328429087,1717380632201,-226.51830624,0.000201,2]
[328429088,1717380632211,-155.0,0.00023487,2]
[328429089,1717380632221,-428.64957121,0.00023488,2]
[328429090,1717380632230,-197.56262793,0.00024098,2]
[328429092,1717380632239,-310.73311748,0.00024195,2]
[328429094,1717380632248,-430.93635837,0.00024195,2]
[328429095,1717380632257,-462.23192687,0.00024196,2]
[328429097,1717380632268,-280.85203042,0.00024196,2]
[328429098,1717380632279,-12325.75547988,0.00024196,2]
[328429099,1717380632290,-289.3455407,0.00024196,2]
[328429100,1717380632301,-278.60878409,0.00024196,2]
[328429101,1717380632312,-1115.8023317,0.00024196,2]
[328429104,1717380632550,-3499.02376926,0.00024196,2]
[328429106,1717380632562,-603.38328281,0.00024196,2]
[328429108,1717380632573,-363.2425254,0.00024196,2]
[328429110,1717380632584,-946.60826906,0.00024196,2]
[328429112,1717380632594,-2140.72487849,0.00024196,2]
[328429114,1717380632607,-1958.17991589,0.00024196,2]
[328429116,1717380632619,-1325.14524,0.00024196,2]
[328429119,1717380632630,-6859.2912,0.00024196,2]
[328429121,1717380632642,-6473.23697855,0.00024196,2]
[328429137,1717380639577,-349.45056408,0.00024098,2]
[328429140,1717380639587,-26952.9158102,0.00024196,2]
[328429143,1717380639599,-14193.21139641,0.00024196,2]
[328429145,1717380639613,-4207.32988912,0.00024196,2]
[328429147,1717380639624,-2762.81609821,0.00024196,2]
[328429149,1717380639636,-29277.75915824,0.00024196,2]
[328429152,1717380639648,-343.55,0.00024196,2]
[328429157,1717380640072,-1298.20875089,0.00017259,2]
[328429160,1717380640082,-224053.09572894,0.00024196,2]
[328429161,1717380640093,-500.0,0.00024197,2]
[328429162,1717380640104,-421.6164004,0.00024197,2]
[328429163,1717380640114,-500.0,0.00024197,2]
[328429164,1717380640125,-500.0,0.00024197,2]
[328429165,1717380640135,-564.97944505,0.00024197,2]
[328429166,1717380640148,-644.07735703,0.00024197,2]
[328429167,1717380640158,-1041.60790739,0.00024198,2]
[328429168,1717380640167,-131212.98919553,0.00024198,2]
[328429169,1717380640179,-2926.33676954,0.00024198,2]
[328429170,1717380640191,-261222.75656173,0.00024198,2]
[328429171,1717380640200,-446.44016402,0.00024198,2]
[328429172,1717380640210,-37553.49291669,0.00024198,2]
[328429173,1717380640220,-1046.00879029,0.00024198,2]
[328429174,1717380640230,-500.0,0.00024198,2]
[328429175,1717380640239,-257.76309621,0.00024198,2]
[328429176,1717380640249,-1888.4875,0.00024198,2]
[328429177,1717380640258,-335.07101347,0.00024198,2]
[328429178,1717380640268,-308.49,0.00024384,2]
[328429179,1717380640277,-154.35,0.00024384,2]
[328429180,1717380640287,-4541.15155382,0.00024798,2]
[328429181,1717380640296,-1250.0,0.00025,2]
[328429182,1717380640306,-4541.15155382,0.00025109,2]
[328429183,1717380640316,-187.12,0.00025464,2]
[328429184,1717380640325,-167.0,0.0002559,2]
[328429185,1717380640335,-250.0,0.00025675,2]
[328429186,1717380640345,-240.51,0.00025837,2]
[328429187,1717380640355,-154.08,0.0002599,2]
[328429188,1717380640365,-23501.76131717,0.00026,5]
[328429189,1717380640375,-226.58,0.00026001,2]
[328429190,1717380640384,-4541.15155382,0.00026121,2]
[328429191,1717380640396,-180.27,0.00026139,2]
[328429192,1717380640405,-168.15,0.00026139,2]
[328429193,1717380640415,-389.76,0.00026301,2]
[328429194,1717380640424,-521.09,0.00026462,2]
[328429195,1717380640433,-208.16592772,0.00026488,7]
[328429196,1717380640443,-1000.0,0.00026739,2]
[328429197,1717380640454,-250.0,0.00026749,2]
[328429198,1717380640463,-155.53632483,0.00026809,2]
[328429199,1717380640472,-1300.0,0.00027,2]
[328429200,1717380640482,-4541.15155382,0.00027132,2]
[328429201,1717380640492,-167.0,0.0002714,2]
[328429202,1717380640501,-500.0,0.00027175,2]
[328429203,1717380640511,-155.31918261,0.0002729,2]
[328429204,1717380640521,-180.0,0.0002733,2]
[328429205,1717380640530,-164.23592444,0.00027356,2]
[328429206,1717380640540,-253.09731467,0.00027356,2]
[328429207,1717380640549,-1069.27492636,0.00027356,2]
[328429208,1717380640560,-2239.4009364,0.00027356,7]
[328429209,1717380640570,-809.5948544,0.0002739,2]
[328429210,1717380640580,-356.57691432,0.00027397,2]
[328429211,1717380640589,-153.03,0.00027397,2]
[328429212,1717380640599,-159.65,0.000274,2]
[328429213,1717380640611,-159.65,0.000274,2]
[328429214,1717380640622,-159.65,0.000274,2]
[328429215,1717380640632,-619.863832,0.00027671,14]
[328429216,1717380640643,-7904.58132602,0.00028,2]
[328429217,1717380640653,-4541.15155382,0.00028143,2]
[328429218,1717380640663,-2309.0,0.000282,2]
[328429219,1717380640672,-500.0,0.00028271,2]
[328429220,1717380640682,-150.0,0.00028356,2]
[328429221,1717380640692,-150.0,0.00028356,2]
[328429222,1717380640702,-171.61,0.00028417,2]
[328429223,1717380640712,-871.81,0.00028493,2]
[328429224,1717380640723,-619.863832,0.00028493,14]
[328429225,1717380640733,-1000.0,0.000287,2]
[328429226,1717380640742,-1462.0,0.000287,2]
[328429227,1717380640754,-521.09,0.00028726,2]
[328429228,1717380640764,-226.58,0.00028741,2]
[328429229,1717380640775,-150.0,0.00028904,2]
[328429230,1717380640784,-159.65,0.0002899,2]
[328429231,1717380640794,-159.65,0.0002899,2]
[328429232,1717380640803,-2009.21497381,0.00029,5]
[328429233,1717380640812,-1350.0,0.00029,2]
[328429234,1717380640821,-500000.0,0.00029,2]
[328429235,1717380640832,-1000.0,0.00029,2]
[328429236,1717380640842,-168.93,0.00029104,2]
[328429237,1717380640851,-4781.02268136,0.0002913,10]
[328429238,1717380640860,-4541.15155382,0.00029155,2]
[328429239,1717380640870,-1888.48751,0.00029198,2]
[328429240,1717380640879,-1000.0,0.000292,2]
[328429241,1717380640890,-619.863832,0.00029315,14]
[328429242,1717380640900,-500.0,0.00029367,2]
[328429243,1717380640909,-227.21479396,0.000295,3]
[328429245,1717380640919,-5810.9232,0.00029579,2]
[328429247,1717380640928,-327.78775001,0.00029677,2]
[328429249,1717380640938,-857.49558739,0.00029677,2]
[328429251,1717380640947,-7555.13341388,0.00029677,2]
[328429253,1717380640959,-155.36667574,0.00029678,2]
[328429255,1717380640968,-411.95763023,0.00029678,2]
[328429257,1717380640978,-752.65557988,0.00029678,15]
[328429259,1717380640987,-1000.0,0.000297,2]
[328429261,1717380640996,-3895.69769367,0.00029778,2]
[328429263,1717380641005,-166.07005806,0.00029834,2]
[328429265,1717380641015,-154.08,0.0002987,2]
[328429267,1717380641025,-7030.67578191,0.0002988,2]
[328429269,1717380641034,-353.43631528,0.000299,2]
[328429271,1717380641044,-2009.63809376,0.000299,2]
[328429273,1717380641053,-19006.92483342,0.000299,2]
[328429275,1717380641063,-200.42484092,0.000299,2]
[328429277,1717380641072,-654.98963235,0.000299,2]
[328429279,1717380641082,-7788.24605678,0.000299,2]
[328429280,1717380641091,-159.65,0.00029969,2]
[328429283,1717380641101,-154.08,0.0002997,2]
[328429284,1717380641111,-159.65,0.0002997,2]
[328429286,1717380641120,-159.65,0.0002997,2]
[328429288,1717380641130,-43943.0,0.00029973,4]
[328429290,1717380641140,-1001.2254,0.00029979,2]
[328429291,1717380641149,-82288.7102217,0.00029979,2]
[328429292,1717380641158,-10208.257548,0.00029979,2]
[328429293,1717380641168,-368805.95269055,0.0002998,14]
[328429294,1717380641181,-3280.6014,0.0002998,14]
[328429315,1717380641484,-294.97476937,0.0002998,14]
[328429317,1717380641495,-3514.59179385,0.0002998,14]
[328429319,1717380641506,-26501.31682089,0.0002998,14]
[328429322,1717380641517,-3235.74521188,0.0002998,14]
[328429324,1717380641528,-1715.93,0.0002998,14]
[328429373,1717380643338,-4865.26494532,0.0002998,14]
[328429376,1717380643350,-1859.66553554,0.0002998,14]
[328429378,1717380643362,-3164.06321272,0.0002998,14]
[328429380,1717380643374,-1599.56111996,0.0002998,14]
[328429382,1717380643386,-62073.55190206,0.0002998,14]
[328429383,1717380643399,-163484.47602258,0.0002998,14]
[328429384,1717380643467,-5649.55120121,0.0002998,14]
[328429385,1717380644712,-1048.582763,0.0002998,14]
[328429386,1717380645174,-17314.99484489,0.0002998,14]
[328429387,1717380645185,-205527.25787121,0.0002998,14]
[328429388,1717380645197,-12146.44170332,0.0002998,14]
[328429389,1717380646059,-139111.34215021,0.0002998,14]
[328429393,1717380646068,-186.218323,0.0002998,7]
[328429394,1717380646089,-170.165597,0.0002998,7]
[328429395,1717380646099,-151.0,0.0002998,7]
[328429397,1717380646108,-162.873846,0.0002998,7]
[328429399,1717380646118,-151.0,0.0002998,7]
[328429401,1717380646127,-637.046147,0.0002998,7]
[328429403,1717380646137,-637.046147,0.0002998,7]
[328429405,1717380646147,-166.547795,0.0002998,7]